fUSD/lending_fUSD_20260520
["ID","MTS","AMOUNT","RATE_DAILY","PERIOD"]
[422662212,1779222639000,-151.44167909,0.00013488,2]
[422662216,1779222639000,-150.0,0.00013488,2]
[422662218,1779222639000,-150.0,0.00013488,2]
[422662219,1779222639000,-150.0,0.00013488,2]
[422662214,1779222639000,-150.0,0.00013488,2]
[422662215,1779222639000,-150.0,0.00013488,2]
[422662217,1779222639000,-150.0,0.00013488,2]
[422662220,1779222639000,-152.22131517,0.00013488,2]
[422662221,1779222639000,-152.22131517,0.00013503,2]
[422662223,1779222639000,-163.19,0.00013523,2]
[422662197,1779222639000,-500.0,0.00013208,2]
[422662211,1779222639000,-150.0,0.00013488,2]
[422662196,1779222639000,-45313.99331683,0.00013188,2]
[422662167,1779222639000,-45313.99331683,0.00012219,2]
[422662189,1779222639000,-517.407801,0.00012924,2]
[422662224,1779222639000,-2000.0,0.00013523,2]
[422662168,1779222639000,-3626.72,0.00012276,2]
[422662169,1779222639000,-231.7,0.00012329,2]
[422662170,1779222639000,-500.0,0.00012386,2]
[422662172,1779222639000,-45313.99331683,0.00012413,2]
[422662171,1779222639000,-163.19,0.00012396,2]
[422662173,1779222639000,-420.0,0.00012414,2]
[422662175,1779222639000,-3626.72,0.00012601,2]
[422662177,1779222639000,-500.0,0.0001266,2]
[422662179,1779222639000,-255.0,0.00012708,2]
[422662176,1779222639000,-45313.99331683,0.00012607,2]
[422662180,1779222639000,-919.22851437,0.00012733,2]
[422662192,1779222639000,-500.0,0.00012934,2]
[422662178,1779222639000,-175.81059483,0.00012698,2]
[422662181,1779222639000,-521.98669261,0.00012755,2]
[422662182,1779222639000,-45313.99331683,0.00012801,2]
[422662184,1779222639000,-999.99,0.00012893,2]
[422662185,1779222639000,-150.99,0.00012893,2]
[422662187,1779222639000,-229.421913,0.00012924,2]
[422662195,1779222639000,-500.0,0.00013014,2]
[422662186,1779222639000,-168.67,0.00012909,2]
[422662194,1779222639000,-2640.837925,0.00013004,2]
[422662191,1779222639000,-904.012501,0.00012924,2]
[422662193,1779222639000,-45313.99331683,0.00012994,2]
[422662188,1779222639000,-1090.642098,0.00012924,2]
[422662190,1779222639000,-3932.947098,0.00012924,2]
[422662183,1779222639000,-166.52,0.00012873,2]
[422662225,1779222639000,-150.0,0.00013525,2]
[422662174,1779222639000,-1680.0,0.0001243,2]
[422662231,1779222639000,-150.0,0.00013571,2]
[422662259,1779222639000,-500.0,0.00013698,2]
[422662268,1779222639000,-500.0,0.00013698,2]
[422662262,1779222639000,-500.0,0.00013698,2]
[422662260,1779222639000,-500.0,0.00013698,2]
[422662266,1779222639000,-500.0,0.00013698,2]
[422662261,1779222639000,-500.0,0.00013698,2]
[422662265,1779222639000,-500.0,0.00013698,2]
[422662267,1779222639000,-500.0,0.00013698,2]
[422662264,1779222639000,-500.0,0.00013698,2]
[422662263,1779222639000,-500.0,0.00013698,2]
[422662273,1779222639000,-500.0,0.00013698,2]
[422662271,1779222639000,-500.0,0.00013698,2]
[422662258,1779222639000,-500.0,0.00013698,2]
[422662270,1779222639000,-500.0,0.00013698,2]
[422662275,1779222639000,-509.06477309,0.00013698,2]
[422662276,1779222639000,-500.0,0.00013698,2]
[422662272,1779222639000,-500.0,0.00013698,2]
[422662274,1779222639000,-500.0,0.00013698,2]
[422662277,1779222639000,-500.0,0.00013698,2]
[422662279,1779222639000,-500.0,0.00013698,2]
[422662280,1779222639000,-500.0,0.00013698,2]
[422662281,1779222639000,-500.0,0.00013698,2]
[422662282,1779222639000,-500.0,0.00013698,2]
[422662283,1779222639000,-500.0,0.00013698,2]
[422662284,1779222639000,-500.0,0.00013698,2]
[422662226,1779222639000,-152.22131517,0.00013533,2]
[422662278,1779222639000,-500.0,0.00013698,2]
[422662254,1779222639000,-500.0,0.00013698,2]
[422662269,1779222639000,-500.0,0.00013698,2]
[422662255,1779222639000,-500.0,0.00013698,2]
[422662227,1779222639000,-150.0,0.00013548,2]
[422662252,1779222639000,-500.0,0.00013698,2]
[422662232,1779222639000,-152.22131517,0.00013578,2]
[422662228,1779222639000,-152.22131517,0.00013548,2]
[422662229,1779222639000,-150.0,0.00013563,2]
[422662233,1779222639000,-152.22131517,0.00013594,2]
[422662234,1779222639000,-150.0,0.00013595,2]
[422662235,1779222639000,-150.0,0.000136,2]
[422662244,1779222639000,-152.22131517,0.00013654,2]
[422662242,1779222639000,-152.22131517,0.00013639,2]
[422662236,1779222639000,-150.0,0.00013603,2]
[422662243,1779222639000,-150.0,0.00013654,2]
[422662241,1779222639000,-587.0,0.00013638,2]
[422662240,1779222639000,-150.0,0.00013638,2]
[422662230,1779222639000,-152.22131517,0.00013563,2]
[422662239,1779222639000,-152.22131517,0.00013624,2]
[422662238,1779222639000,-152.22131517,0.00013609,2]
[422662251,1779222639000,-500.0,0.00013698,2]
[422662249,1779222639000,-150.0,0.00013675,2]
[422662248,1779222639000,-150.0,0.00013675,2]
[422662245,1779222639000,-150.0,0.00013668,2]
[422662256,1779222639000,-500.0,0.00013698,2]
[422662253,1779222639000,-500.0,0.00013698,2]
[422662250,1779222639000,-152.22131517,0.00013684,2]
[422662257,1779222639000,-500.0,0.00013698,2]
[422662246,1779222639000,-152.22131517,0.00013669,2]
[422662237,1779222639000,-150.0,0.00013608,2]
[422662247,1779222639000,-2351.0,0.00013673,2]
[422662323,1779222640000,-500.0,0.00013698,2]
[422662325,1779222640000,-500.0,0.00013698,2]
[422662322,1779222640000,-500.0,0.00013698,2]
[422662326,1779222640000,-500.0,0.00013698,2]
[422662321,1779222640000,-500.0,0.00013698,2]
[422662324,1779222640000,-500.0,0.00013698,2]
[422662318,1779222640000,-500.0,0.00013698,2]
[422662319,1779222640000,-500.0,0.00013698,2]
[422662317,1779222640000,-500.0,0.00013698,2]
[422662331,1779222640000,-828.02,0.00013698,2]
[422662320,1779222640000,-500.0,0.00013698,2]
[422662315,1779222640000,-500.0,0.00013698,2]
[422662333,1779222640000,-828.02,0.00013698,2]
[422662330,1779222640000,-828.02,0.00013698,2]
[422662332,1779222640000,-828.02,0.00013698,2]
[422662329,1779222640000,-828.02,0.00013698,2]
[422662328,1779222640000,-828.02,0.00013698,2]
[422662337,1779222640000,-2025.12,0.00013698,2]
[422662338,1779222640000,-2025.12,0.00013698,2]
[422662335,1779222640000,-828.02,0.00013698,2]
[422662334,1779222640000,-828.02,0.00013698,2]
[422662336,1779222640000,-1601.2,0.00013698,2]
[422662340,1779222640000,-2025.12,0.00013698,2]
[422662350,1779222640000,-500.0,0.00013698,2]
[422662316,1779222640000,-500.0,0.00013698,2]
[422662327,1779222640000,-437.75907725,0.00013698,2]
[422662309,1779222640000,-500.0,0.00013698,2]
[422662289,1779222640000,-500.0,0.00013698,2]
[422662310,1779222640000,-500.0,0.00013698,2]
[422662339,1779222640000,-2025.12,0.00013698,2]
[422662286,1779222640000,-500.0,0.00013698,2]
[422662287,1779222640000,-500.0,0.00013698,2]
[422662288,1779222640000,-500.0,0.00013698,2]
[422662291,1779222640000,-500.0,0.00013698,2]
[422662285,1779222640000,-500.0,0.00013698,2]
[422662290,1779222640000,-500.0,0.00013698,2]
[422662293,1779222640000,-500.0,0.00013698,2]
[422662292,1779222640000,-500.0,0.00013698,2]
[422662294,1779222640000,-500.0,0.00013698,2]
[422662299,1779222640000,-500.0,0.00013698,2]
[422662300,1779222640000,-500.0,0.00013698,2]
[422662295,1779222640000,-500.0,0.00013698,2]
[422662301,1779222640000,-512.8400443,0.00013698,2]
[422662302,1779222640000,-371.97687373,0.00013698,2]
[422662296,1779222640000,-500.0,0.00013698,2]
[422662298,1779222640000,-500.0,0.00013698,2]
[422662297,1779222640000,-500.0,0.00013698,2]
[422662305,1779222640000,-1285.89,0.00013698,2]
[422662303,1779222640000,-500.0,0.00013698,2]
[422662304,1779222640000,-500.0,0.00013698,2]
[422662313,1779222640000,-500.0,0.00013698,2]
[422662307,1779222640000,-500.0,0.00013698,2]
[422662306,1779222640000,-500.0,0.00013698,2]
[422662308,1779222640000,-500.0,0.00013698,2]
[422662314,1779222640000,-500.0,0.00013698,2]
[422662312,1779222640000,-500.0,0.00013698,2]
[422662311,1779222640000,-500.0,0.00013698,2]
[422662341,1779222640000,-2025.12,0.00013698,2]
[422662358,1779222640000,-500.0,0.00013698,2]
[422662344,1779222640000,-2025.12,0.00013698,2]
[422662377,1779222640000,-500.0,0.00013698,2]
[422662378,1779222640000,-500.0,0.00013698,2]
[422662386,1779222640000,-500.0,0.00013698,2]
[422662388,1779222640000,-500.0,0.00013698,2]
[422662380,1779222640000,-500.0,0.00013698,2]
[422662376,1779222640000,-500.0,0.00013698,2]
[422662381,1779222640000,-500.0,0.00013698,2]
[422662383,1779222640000,-500.0,0.00013698,2]
[422662379,1779222640000,-500.0,0.00013698,2]
[422662387,1779222640000,-500.0,0.00013698,2]
[422662384,1779222640000,-500.0,0.00013698,2]
[422662342,1779222640000,-2025.12,0.00013698,2]
[422662385,1779222640000,-500.0,0.00013698,2]
[422662390,1779222640000,-500.0,0.00013698,2]
[422662394,1779222640000,-500.0,0.00013698,2]
[422662393,1779222640000,-500.0,0.00013698,2]
[422662392,1779222640000,-500.0,0.00013698,2]
[422662391,1779222640000,-500.0,0.00013698,2]
[422662396,1779222640000,-500.0,0.00013698,2]
[422662399,1779222640000,-500.0,0.00013698,2]
[422662397,1779222640000,-500.0,0.00013698,2]
[422662398,1779222640000,-500.0,0.00013698,2]
[422662395,1779222640000,-500.0,0.00013698,2]
[422662401,1779222640000,-500.0,0.00013698,2]
[422662402,1779222640000,-500.0,0.00013698,2]
[422662400,1779222640000,-500.0,0.00013698,2]
[422662389,1779222640000,-500.0,0.00013698,2]
[422662371,1779222640000,-500.0,0.00013698,2]
[422662382,1779222640000,-500.0,0.00013698,2]
[422662369,1779222640000,-531.04142936,0.00013698,2]
[422662372,1779222640000,-500.0,0.00013698,2]
[422662346,1779222640000,-500.0,0.00013698,2]
[422662348,1779222640000,-500.0,0.00013698,2]
[422662349,1779222640000,-209.51466794,0.00013698,2]
[422662345,1779222640000,-349.78123329,0.00013698,2]
[422662343,1779222640000,-2025.12,0.00013698,2]
[422662347,1779222640000,-500.0,0.00013698,2]
[422662352,1779222640000,-500.0,0.00013698,2]
[422662353,1779222640000,-500.0,0.00013698,2]
[422662362,1779222640000,-500.0,0.00013698,2]
[422662354,1779222640000,-500.0,0.00013698,2]
[422662355,1779222640000,-502.26457944,0.00013698,2]
[422662357,1779222640000,-500.0,0.00013698,2]
[422662351,1779222640000,-500.0,0.00013698,2]
[422662361,1779222640000,-504.85547194,0.00013698,2]
[422662356,1779222640000,-500.0,0.00013698,2]
[422662373,1779222640000,-500.0,0.00013698,2]
[422662370,1779222640000,-500.0,0.00013698,2]
[422662374,1779222640000,-455.91720419,0.00013698,2]
[422662367,1779222640000,-500.0,0.00013698,2]
[422662366,1779222640000,-580.58046492,0.00013698,2]
[422662368,1779222640000,-500.0,0.00013698,2]
[422662365,1779222640000,-500.0,0.00013698,2]
[422662375,1779222640000,-513.26513415,0.00013698,2]
[422662364,1779222640000,-500.0,0.00013698,2]
[422662359,1779222640000,-500.0,0.00013698,2]
[422662360,1779222640000,-500.0,0.00013698,2]
[422662363,1779222640000,-500.0,0.00013698,2]
[422662445,1779222641000,-500.0,0.00013698,2]
[422662442,1779222641000,-500.0,0.00013698,2]
[422662440,1779222641000,-500.0,0.00013698,2]
[422662441,1779222641000,-500.0,0.00013698,2]
[422662439,1779222641000,-500.0,0.00013698,2]
[422662437,1779222641000,-500.0,0.00013698,2]
[422662438,1779222641000,-500.0,0.00013698,2]
[422662433,1779222641000,-500.0,0.00013698,2]
[422662434,1779222641000,-500.0,0.00013698,2]
[422662435,1779222641000,-500.0,0.00013698,2]
[422662444,1779222641000,-500.0,0.00013698,2]
[422662443,1779222641000,-500.0,0.00013698,2]
[422662449,1779222641000,-200.0,0.00013699,2]
[422662464,1779222641000,-152.22131517,0.00013775,2]
[422662436,1779222641000,-500.0,0.00013698,2]
[422662455,1779222641000,-152.22131517,0.00013715,2]
[422662452,1779222641000,-150.0,0.00013702,2]
[422662448,1779222641000,-166.66,0.00013699,2]
[422662454,1779222641000,-150.0,0.00013712,2]
[422662447,1779222641000,-546.34,0.00013699,2]
[422662451,1779222641000,-152.22131517,0.000137,2]
[422662446,1779222641000,-2500.0,0.00013699,2]
[422662453,1779222641000,-150.0,0.00013702,2]
[422662458,1779222641000,-152.22131517,0.0001373,2]
[422662456,1779222641000,-150.0,0.00013718,2]
[422662465,1779222641000,-150.0,0.00013787,2]
[422662450,1779222641000,-7264.1,0.00013699,2]
[422662432,1779222641000,-500.0,0.00013698,2]
[422662460,1779222641000,-152.22131517,0.00013745,2]
[422662427,1779222641000,-500.0,0.00013698,2]
[422662403,1779222641000,-500.0,0.00013698,2]
[422662404,1779222641000,-500.0,0.00013698,2]
[422662405,1779222641000,-500.0,0.00013698,2]
[422662406,1779222641000,-500.0,0.00013698,2]
[422662407,1779222641000,-500.0,0.00013698,2]
[422662409,1779222641000,-500.0,0.00013698,2]
[422662410,1779222641000,-500.0,0.00013698,2]
[422662408,1779222641000,-500.0,0.00013698,2]
[422662411,1779222641000,-500.0,0.00013698,2]
[422662415,1779222641000,-500.0,0.00013698,2]
[422662413,1779222641000,-500.0,0.00013698,2]
[422662414,1779222641000,-500.0,0.00013698,2]
[422662412,1779222641000,-500.0,0.00013698,2]
[422662416,1779222641000,-500.0,0.00013698,2]
[422662417,1779222641000,-500.0,0.00013698,2]
[422662421,1779222641000,-500.0,0.00013698,2]
[422662418,1779222641000,-500.0,0.00013698,2]
[422662419,1779222641000,-500.0,0.00013698,2]
[422662420,1779222641000,-500.0,0.00013698,2]
[422662422,1779222641000,-414.8124978,0.00013698,2]
[422662424,1779222641000,-238.0,0.00013698,2]
[422662423,1779222641000,-238.0,0.00013698,2]
[422662425,1779222641000,-238.0,0.00013698,2]
[422662426,1779222641000,-242.36372684,0.00013698,2]
[422662431,1779222641000,-500.0,0.00013698,2]
[422662429,1779222641000,-500.0,0.00013698,2]
[422662428,1779222641000,-500.0,0.00013698,2]
[422662430,1779222641000,-500.0,0.00013698,2]
[422662462,1779222641000,-500.0,0.00013756,2]
[422662513,1779222641000,-500.0,0.00013935,2]
[422662461,1779222641000,-150.0,0.0001375,2]
[422662497,1779222641000,-152.22131517,0.00013927,2]
[422662496,1779222641000,-150.0,0.00013916,2]
[422662507,1779222641000,-150.0,0.00013935,2]
[422662498,1779222641000,-500.0,0.00013935,2]
[422662506,1779222641000,-150.0,0.00013935,2]
[422662495,1779222641000,-150.0,0.00013916,2]
[422662503,1779222641000,-500.0,0.00013935,2]
[422662502,1779222641000,-500.0,0.00013935,2]
[422662499,1779222641000,-500.0,0.00013935,2]
[422662500,1779222641000,-500.0,0.00013935,2]
[422662501,1779222641000,-500.0,0.00013935,2]
[422662504,1779222641000,-539.56685334,0.00013935,2]
[422662505,1779222641000,-150.0,0.00013935,2]
[422662508,1779222641000,-185.87830768,0.00013935,2]
[422662511,1779222641000,-500.0,0.00013935,2]
[422662512,1779222641000,-500.0,0.00013935,2]
[422662510,1779222641000,-500.0,0.00013935,2]
[422662519,1779222641000,-500.0,0.00013935,2]
[422662509,1779222641000,-256.32821497,0.00013935,2]
[422662518,1779222641000,-500.0,0.00013935,2]
[422662516,1779222641000,-500.0,0.00013935,2]
[422662514,1779222641000,-413.19836164,0.00013935,2]
[422662515,1779222641000,-500.0,0.00013935,2]
[422662517,1779222641000,-623.0,0.00013935,2]
[422662521,1779222641000,-500.0,0.00013935,2]
[422662522,1779222641000,-623.0,0.00013935,2]
[422662463,1779222641000,-152.22131517,0.0001376,2]
[422662494,1779222641000,-152.22131517,0.00013912,2]
[422662488,1779222641000,-152.22131517,0.00013896,2]
[422662520,1779222641000,-623.0,0.00013935,2]
[422662493,1779222641000,-150.0,0.00013907,2]
[422662467,1779222641000,-152.22131517,0.0001379,2]
[422662457,1779222641000,-150.0,0.00013727,2]
[422662459,1779222641000,-150.0,0.00013737,2]
[422662468,1779222641000,-150.0090512,0.00013794,2]
[422662480,1779222641000,-152.22131517,0.00013836,2]
[422662470,1779222641000,-150.0090512,0.00013794,2]
[422662481,1779222641000,-150.0,0.00013847,2]
[422662471,1779222641000,-150.0090512,0.00013794,2]
[422662469,1779222641000,-150.0090512,0.00013794,2]
[422662472,1779222641000,-152.22131517,0.00013806,2]
[422662473,1779222641000,-150.0,0.00013809,2]
[422662487,1779222641000,-152.22131517,0.00013881,2]
[422662474,1779222641000,-919.22851437,0.00013816,2]
[422662466,1779222641000,-150.0,0.00013787,2]
[422662478,1779222641000,-150.0,0.00013834,2]
[422662479,1779222641000,-166.66,0.00013836,2]
[422662492,1779222641000,-150.0,0.00013904,2]
[422662490,1779222641000,-182.41,0.000139,2]
[422662489,1779222641000,-150.0,0.000139,2]
[422662486,1779222641000,-433.0,0.00013871,2]
[422662491,1779222641000,-428.36,0.000139,2]
[422662482,1779222641000,-152.22131517,0.00013851,2]
[422662484,1779222641000,-150.0,0.00013862,2]
[422662483,1779222641000,-150.0,0.00013862,2]
[422662477,1779222641000,-150.0,0.00013825,2]
[422662475,1779222641000,-150.0,0.00013821,2]
[422662485,1779222641000,-152.22131517,0.00013866,2]
[422662476,1779222641000,-152.22131517,0.00013821,2]
[422662559,1779222642000,-500.0,0.00013935,2]
[422662556,1779222642000,-623.38423794,0.00013935,2]
[422662557,1779222642000,-500.0,0.00013935,2]
[422662555,1779222642000,-623.0,0.00013935,2]
[422662552,1779222642000,-623.0,0.00013935,2]
[422662553,1779222642000,-623.0,0.00013935,2]
[422662550,1779222642000,-349.07736479,0.00013935,2]
[422662561,1779222642000,-500.0,0.00013935,2]
[422662551,1779222642000,-623.0,0.00013935,2]
[422662554,1779222642000,-623.0,0.00013935,2]
[422662560,1779222642000,-500.0,0.00013935,2]
[422662563,1779222642000,-500.0,0.00013935,2]
[422662566,1779222642000,-500.0,0.00013935,2]
[422662574,1779222642000,-500.0,0.00013935,2]
[422662562,1779222642000,-500.0,0.00013935,2]
[422662570,1779222642000,-154.4434751,0.00013935,2]
[422662568,1779222642000,-500.0,0.00013935,2]
[422662564,1779222642000,-500.0,0.00013935,2]
[422662567,1779222642000,-500.0,0.00013935,2]
[422662565,1779222642000,-500.0,0.00013935,2]
[422662569,1779222642000,-500.0,0.00013935,2]
[422662549,1779222642000,-623.0,0.00013935,2]
[422662572,1779222642000,-500.0,0.00013935,2]
[422662546,1779222642000,-500.0,0.00013935,2]
[422662543,1779222642000,-500.0,0.00013935,2]
[422662547,1779222642000,-623.0,0.00013935,2]
[422662530,1779222642000,-623.0,0.00013935,2]
[422662526,1779222642000,-623.0,0.00013935,2]
[422662528,1779222642000,-623.0,0.00013935,2]
[422662531,1779222642000,-500.0,0.00013935,2]
[422662525,1779222642000,-500.0,0.00013935,2]
[422662523,1779222642000,-500.0,0.00013935,2]
[422662524,1779222642000,-623.0,0.00013935,2]
[422662529,1779222642000,-500.0,0.00013935,2]
[422662527,1779222642000,-500.0,0.00013935,2]
[422662533,1779222642000,-500.0,0.00013935,2]
[422662576,1779222642000,-500.0,0.00013935,2]
[422662539,1779222642000,-500.0,0.00013935,2]
[422662535,1779222642000,-500.0,0.00013935,2]
[422662544,1779222642000,-623.0,0.00013935,2]
[422662534,1779222642000,-623.0,0.00013935,2]
[422662538,1779222642000,-623.0,0.00013935,2]
[422662545,1779222642000,-623.0,0.00013935,2]
[422662532,1779222642000,-623.0,0.00013935,2]
[422662536,1779222642000,-623.0,0.00013935,2]
[422662537,1779222642000,-500.0,0.00013935,2]
[422662540,1779222642000,-623.0,0.00013935,2]
[422662542,1779222642000,-623.0,0.00013935,2]
[422662541,1779222642000,-623.0,0.00013935,2]
[422662548,1779222642000,-500.0,0.00013935,2]
[422662575,1779222642000,-500.0,0.00013935,2]
[422662558,1779222642000,-500.0,0.00013935,2]
[422662577,1779222642000,-504.11602688,0.00013935,2]
[422662604,1779222642000,-500.0,0.00013935,2]
[422662607,1779222642000,-472.0,0.00013935,2]
[422662611,1779222642000,-500.0,0.00013935,2]
[422662609,1779222642000,-472.0,0.00013935,2]
[422662615,1779222642000,-500.0,0.00013935,2]
[422662614,1779222642000,-500.0,0.00013935,2]
[422662613,1779222642000,-500.0,0.00013935,2]
[422662617,1779222642000,-500.0,0.00013935,2]
[422662610,1779222642000,-472.0,0.00013935,2]
[422662612,1779222642000,-472.0,0.00013935,2]
[422662608,1779222642000,-472.0,0.00013935,2]
[422662606,1779222642000,-640.37436832,0.00013935,2]
[422662616,1779222642000,-500.0,0.00013935,2]
[422662620,1779222642000,-500.0,0.00013935,2]
[422662622,1779222642000,-500.0,0.00013935,2]
[422662621,1779222642000,-500.0,0.00013935,2]
[422662627,1779222642000,-472.0,0.00013935,2]
[422662625,1779222642000,-472.0,0.00013935,2]
[422662624,1779222642000,-150.0,0.00013935,2]
[422662626,1779222642000,-472.0,0.00013935,2]
[422662628,1779222642000,-472.0,0.00013935,2]
[422662623,1779222642000,-493.58301202,0.00013935,2]
[422662629,1779222642000,-472.0,0.00013935,2]
[422662586,1779222642000,-472.0,0.00013935,2]
[422662619,1779222642000,-500.0,0.00013935,2]
[422662605,1779222642000,-472.0,0.00013935,2]
[422662618,1779222642000,-472.0,0.00013935,2]
[422662602,1779222642000,-500.0,0.00013935,2]
[422662578,1779222642000,-500.0,0.00013935,2]
[422662600,1779222642000,-500.0,0.00013935,2]
[422662581,1779222642000,-150.0,0.00013935,2]
[422662580,1779222642000,-309.03960432,0.00013935,2]
[422662579,1779222642000,-500.0,0.00013935,2]
[422662583,1779222642000,-150.0,0.00013935,2]
[422662582,1779222642000,-150.0,0.00013935,2]
[422662584,1779222642000,-150.0,0.00013935,2]
[422662588,1779222642000,-472.0,0.00013935,2]
[422662595,1779222642000,-472.0,0.00013935,2]
[422662590,1779222642000,-500.0,0.00013935,2]
[422662597,1779222642000,-472.0,0.00013935,2]
[422662585,1779222642000,-210.23455429,0.00013935,2]
[422662591,1779222642000,-472.0,0.00013935,2]
[422662601,1779222642000,-472.0,0.00013935,2]
[422662603,1779222642000,-472.0,0.00013935,2]
[422662598,1779222642000,-500.0,0.00013935,2]
[422662599,1779222642000,-472.0,0.00013935,2]
[422662594,1779222642000,-500.0,0.00013935,2]
[422662593,1779222642000,-472.0,0.00013935,2]
[422662596,1779222642000,-500.0,0.00013935,2]
[422662589,1779222642000,-472.0,0.00013935,2]
[422662587,1779222642000,-472.0,0.00013935,2]
[422662592,1779222642000,-500.0,0.00013935,2]
[422662673,1779222643000,-500.0,0.00013935,2]
[422662674,1779222643000,-573.0,0.00013935,2]
[422662671,1779222643000,-573.0,0.00013935,2]
[422662668,1779222643000,-573.0,0.00013935,2]
[422662669,1779222643000,-1033.0,0.00013935,2]
[422662667,1779222643000,-1033.0,0.00013935,2]
[422662676,1779222643000,-500.0,0.00013935,2]
[422662665,1779222643000,-573.0,0.00013935,2]
[422662659,1779222643000,-200.79234034,0.00013935,2]
[422662666,1779222643000,-500.0,0.00013935,2]
[422662675,1779222643000,-1033.0,0.00013935,2]
[422662661,1779222643000,-573.0,0.00013935,2]
[422662677,1779222643000,-1033.0,0.00013935,2]
[422662670,1779222643000,-500.0,0.00013935,2]
[422662687,1779222643000,-500.0,0.00013935,2]
[422662678,1779222643000,-573.0,0.00013935,2]
[422662680,1779222643000,-1033.0,0.00013935,2]
[422662681,1779222643000,-500.0,0.00013935,2]
[422662685,1779222643000,-535.59562921,0.00013935,2]
[422662682,1779222643000,-573.0,0.00013935,2]
[422662684,1779222643000,-1033.0,0.00013935,2]
[422662683,1779222643000,-500.0,0.00013935,2]
[422662679,1779222643000,-500.0,0.00013935,2]
[422662686,1779222643000,-573.0,0.00013935,2]
[422662689,1779222643000,-500.0,0.00013935,2]
[422662691,1779222643000,-500.0,0.00013935,2]
[422662658,1779222643000,-573.0,0.00013935,2]
[422662690,1779222643000,-573.0,0.00013935,2]
[422662672,1779222643000,-1033.0,0.00013935,2]
[422662660,1779222643000,-573.0,0.00013935,2]
[422662633,1779222643000,-500.0,0.00013935,2]
[422662657,1779222643000,-150.0,0.00013935,2]
[422662688,1779222643000,-1033.0,0.00013935,2]
[422662630,1779222643000,-474.0,0.00013935,2]
[422662634,1779222643000,-500.0,0.00013935,2]
[422662631,1779222643000,-500.0,0.00013935,2]
[422662632,1779222643000,-500.0,0.00013935,2]
[422662635,1779222643000,-500.0,0.00013935,2]
[422662636,1779222643000,-500.0,0.00013935,2]
[422662637,1779222643000,-426.20852031,0.00013935,2]
[422662638,1779222643000,-500.0,0.00013935,2]
[422662639,1779222643000,-500.0,0.00013935,2]
[422662640,1779222643000,-275.90692005,0.00013935,2]
[422662641,1779222643000,-500.0,0.00013935,2]
[422662647,1779222643000,-573.0,0.00013935,2]
[422662648,1779222643000,-500.0,0.00013935,2]
[422662645,1779222643000,-500.0,0.00013935,2]
[422662649,1779222643000,-573.0,0.00013935,2]
[422662646,1779222643000,-500.0,0.00013935,2]
[422662643,1779222643000,-632.65490177,0.00013935,2]
[422662644,1779222643000,-500.0,0.00013935,2]
[422662642,1779222643000,-441.19250183,0.00013935,2]
[422662650,1779222643000,-167.90688095,0.00013935,2]
[422662662,1779222643000,-573.0,0.00013935,2]